[Event "Titled Tuesday Blitz July 25 Early 2023"]
[White "Morefield, Jason"]
[Black "Haraguchi, Diego Sashaki"]
[WhiteFideId "30920825"]
[BlackFideId "22729925"]
[WhiteElo "2736"]
[BlackElo "2400"]
[Result "1-0"]
[Round "2"]
[TimeControl "180+2"]
[Date "2023.07.25"]
[WhiteClock "0:00:37"]
[BlackClock "0:00:06"]
[Board "88"]

1. e4 {[%clk 0:03:00]}  e5 {[%clk 0:02:58]} 2. Nf3 {[%clk 0:03:00]}  Nc6 {[%clk 0:02:56]} 3. Bb5 {[%clk 0:02:57]}  Nge7 {[%clk 0:02:54]} 4. O-O {[%clk 0:02:56]}  g6 {[%clk 0:02:54]} 5. c3 {[%clk 0:02:53]}  Bg7 {[%clk 0:02:54]} 6. d4 {[%clk 0:02:53]}  exd4 {[%clk 0:02:49]} 7. cxd4 {[%clk 0:02:53]}  d5 {[%clk 0:02:49]} 8. exd5 {[%clk 0:02:52]}  Qxd5 {[%clk 0:02:46]} 9. Nc3 {[%clk 0:02:52]}  Qh5 {[%clk 0:02:28]} 10. d5 {[%clk 0:02:46]}  a6 {[%clk 0:02:28]} 11. Ba4 {[%clk 0:02:39]}  b5 {[%clk 0:02:25]} 12. Nxb5 {[%clk 0:02:37]}  axb5 {[%clk 0:02:24]} 13. Bxb5 {[%clk 0:02:38]}  O-O {[%clk 0:02:06]} 14. Bxc6 {[%clk 0:02:34]}  Nxc6 {[%clk 0:02:04]} 15. dxc6 {[%clk 0:02:35]}  Be6 {[%clk 0:01:50]} 16. Ng5 {[%clk 0:02:15]}  Bg4 {[%clk 0:01:36]} 17. f3 {[%clk 0:01:55]}  Bc8 {[%clk 0:01:21]} 18. g4 {[%clk 0:01:39]}  Qh4 {[%clk 0:01:17]} 19. Qe1 {[%clk 0:01:20]}  Qxe1 {[%clk 0:00:33]} 20. Rxe1 {[%clk 0:01:21]}  Ra6 {[%clk 0:00:32]} 21. a4 {[%clk 0:01:11]}  Rxc6 {[%clk 0:00:25]} 22. Ra3 {[%clk 0:01:10]}  Bd4+ {[%clk 0:00:06]} 23. Kg2 {[%clk 0:01:00]}  Rc2+ {[%clk 0:00:05]} 24. Kg3 {[%clk 0:01:01]}  Bf2+ {[%clk 0:00:04]} 25. Kf4 {[%clk 0:00:58]}  Bxe1 {[%clk 0:00:05]} 26. Be3 {[%clk 0:00:57]}  Bd2 {[%clk 0:00:05]} 27. Bxd2 {[%clk 0:00:55]}  Rxd2 {[%clk 0:00:06]} 28. b4 {[%clk 0:00:56]}  Rd4+ {[%clk 0:00:05]} 29. Ke3 {[%clk 0:00:56]}  Rxb4 {[%clk 0:00:06]} 30. a5 {[%clk 0:00:57]}  Ba6 {[%clk 0:00:06]} 31. Kf2 {[%clk 0:00:56]}  Rd8 {[%clk 0:00:06]} 32. h4 {[%clk 0:00:55]}  Rb2+ {[%clk 0:00:06]} 33. Kg3 {[%clk 0:00:56]}  h6 {[%clk 0:00:06]} 34. Ne4 {[%clk 0:00:55]}  Kg7 {[%clk 0:00:07]} 35. Nc5 {[%clk 0:00:55]}  Bb5 {[%clk 0:00:06]} 36. a6 {[%clk 0:00:53]}  Rdd2 {[%clk 0:00:05]} 37. g5 {[%clk 0:00:48]}  hxg5 {[%clk 0:00:05]} 38. hxg5 {[%clk 0:00:49]}  Bc6 {[%clk 0:00:05]} 39. a7 {[%clk 0:00:48]}  Ra2 {[%clk 0:00:05]} 40. Rb3 {[%clk 0:00:38]}  Rxa7 {[%clk 0:00:05]} 41. Rb8 {[%clk 0:00:39]}  Bd5 {[%clk 0:00:06]} 42. Nd7 {[%clk 0:00:37]}  Be6 {[%clk 0:00:06]} 43. Nf6 {[%clk 0:00:37]} 1-0


[Site "https://www.chess.com"]

[Event "Titled Tuesday Blitz July 25 Early 2023"]
[White "Skvortsov, Andrei"]
[Black "Pershina, Elena"]
[WhiteFideId "24108600"]
[BlackFideId "24147516"]
[WhiteElo "2734"]
[BlackElo "2391"]
[Result "1-0"]
[Round "2"]
[TimeControl "180+2"]
[Date "2023.07.25"]
[WhiteClock "0:01:41"]
[BlackClock "0:01:17"]
[Board "90"]

1. e4 {[%clk 0:03:00]}  c5 {[%clk 0:03:00]} 2. d4 {[%clk 0:03:00]}  cxd4 {[%clk 0:03:00]} 3. Qxd4 {[%clk 0:03:01]}  Nc6 {[%clk 0:02:59]} 4. Qd3 {[%clk 0:03:02]}  Nf6 {[%clk 0:02:58]} 5. Nc3 {[%clk 0:03:02]}  d6 {[%clk 0:02:56]} 6. Nf3 {[%clk 0:03:01]}  g6 {[%clk 0:02:55]} 7. Be2 {[%clk 0:03:01]}  Bg7 {[%clk 0:02:55]} 8. O-O {[%clk 0:03:02]}  O-O {[%clk 0:02:55]} 9. Nd5 {[%clk 0:03:02]}  Bg4 {[%clk 0:02:45]} 10. c3 {[%clk 0:03:02]}  Bxf3 {[%clk 0:02:43]} 11. Qxf3 {[%clk 0:03:01]}  Rc8 {[%clk 0:02:38]} 12. Bg5 {[%clk 0:02:59]}  Nxd5 {[%clk 0:02:37]} 13. exd5 {[%clk 0:02:58]}  Ne5 {[%clk 0:02:37]} 14. Qe3 {[%clk 0:02:58]}  Re8 {[%clk 0:02:33]} 15. Qxa7 {[%clk 0:02:48]}  Qc7 {[%clk 0:02:26]} 16. Bb5 {[%clk 0:02:41]}  Ra8 {[%clk 0:02:19]} 17. Qe3 {[%clk 0:02:40]}  Rec8 {[%clk 0:02:11]} 18. a4 {[%clk 0:02:38]}  f6 {[%clk 0:02:02]} 19. Bh4 {[%clk 0:02:35]}  Kf8 {[%clk 0:01:52]} 20. Qe2 {[%clk 0:02:23]}  Qc5 {[%clk 0:01:50]} 21. Rfd1 {[%clk 0:02:20]}  Nc4 {[%clk 0:01:46]} 22. Re1 {[%clk 0:02:10]}  Rc7 {[%clk 0:01:41]} 23. Rad1 {[%clk 0:02:10]}  Bh6 {[%clk 0:01:32]} 24. b4 {[%clk 0:01:59]}  Qb6 {[%clk 0:01:28]} 25. Bxc4 {[%clk 0:01:59]}  Rxa4 {[%clk 0:01:22]} 26. Bxf6 {[%clk 0:01:41]}  exf6 {[%clk 0:01:17]} 27. Qe8+ {[%clk 0:01:40]}  Kg7 {[%clk 0:01:17]} 28. Qxa4 {[%clk 0:01:41]} 1-0


[Site "https://www.chess.com"]

[Event "Titled Tuesday Blitz July 25 Early 2023"]
[White "Timmermans, Mark"]
[Black "Qiao, Cindy"]
[WhiteFideId "1026399"]
[BlackFideId "2620243"]
[WhiteElo "2733"]
[BlackElo "2390"]
[Result "1-0"]
[Round "2"]
[TimeControl "180+2"]
[Date "2023.07.25"]
[WhiteClock "0:02:02"]
[BlackClock "0:01:28"]
[Board "91"]

1. b4 {[%clk 0:03:00]}  d5 {[%clk 0:02:59]} 2. Bb2 {[%clk 0:03:00]}  Nf6 {[%clk 0:02:59]} 3. e3 {[%clk 0:03:00]}  Bf5 {[%clk 0:02:54]} 4. c4 {[%clk 0:03:00]}  e6 {[%clk 0:02:54]} 5. b5 {[%clk 0:02:59]}  Be7 {[%clk 0:02:51]} 6. Nf3 {[%clk 0:02:59]}  Nbd7 {[%clk 0:02:50]} 7. Be2 {[%clk 0:02:59]}  O-O {[%clk 0:02:48]} 8. O-O {[%clk 0:02:58]}  c6 {[%clk 0:02:44]} 9. Nd4 {[%clk 0:02:58]}  c5 {[%clk 0:02:32]} 10. Nxf5 {[%clk 0:02:56]}  exf5 {[%clk 0:02:33]} 11. a4 {[%clk 0:02:47]}  dxc4 {[%clk 0:02:25]} 12. Bxc4 {[%clk 0:02:48]}  Nb6 {[%clk 0:02:24]} 13. Be2 {[%clk 0:02:48]}  Nbd5 {[%clk 0:02:21]} 14. d4 {[%clk 0:02:47]}  cxd4 {[%clk 0:02:17]} 15. Qxd4 {[%clk 0:02:41]}  Re8 {[%clk 0:02:11]} 16. Rd1 {[%clk 0:02:29]}  Qc7 {[%clk 0:01:54]} 17. Nc3 {[%clk 0:02:07]}  Bc5 {[%clk 0:01:28]} 18. Nxd5 {[%clk 0:02:02]} 1-0


[Site "https://www.chess.com"]

[Event "Titled Tuesday Blitz July 25 Early 2023"]
[White "Melikhov, Evgeny V."]
[Black "Csonka, Balazs"]
[WhiteFideId "4122046"]
[BlackFideId "742910"]
[WhiteElo "2388"]
[BlackElo "2731"]
[Result "0-1"]
[Round "2"]
[TimeControl "180+2"]
[Date "2023.07.25"]
[WhiteClock "0:00:21"]
[BlackClock "0:00:13"]
[Board "92"]

1. d4 {[%clk 0:03:00]}  Nf6 {[%clk 0:02:59]} 2. c4 {[%clk 0:03:00]}  a6 {[%clk 0:03:00]} 3. Nc3 {[%clk 0:02:58]}  b5 {[%clk 0:03:00]} 4. cxb5 {[%clk 0:02:48]}  axb5 {[%clk 0:03:01]} 5. Nxb5 {[%clk 0:02:43]}  e5 {[%clk 0:03:02]} 6. dxe5 {[%clk 0:02:32]}  Ne4 {[%clk 0:03:02]} 7. Nc3 {[%clk 0:02:27]}  Bb4 {[%clk 0:03:02]} 8. Bd2 {[%clk 0:02:26]}  Nxd2 {[%clk 0:03:03]} 9. Qxd2 {[%clk 0:02:26]}  O-O {[%clk 0:03:04]} 10. Nf3 {[%clk 0:02:24]}  Nc6 {[%clk 0:03:04]} 11. a3 {[%clk 0:02:21]}  Re8 {[%clk 0:02:57]} 12. Rc1 {[%clk 0:02:18]}  Bf8 {[%clk 0:02:33]} 13. e3 {[%clk 0:02:17]}  Nxe5 {[%clk 0:02:32]} 14. Nxe5 {[%clk 0:02:16]}  Rxe5 {[%clk 0:02:33]} 15. Be2 {[%clk 0:02:15]}  Bb7 {[%clk 0:02:34]} 16. O-O {[%clk 0:02:14]}  Qh4 {[%clk 0:01:55]} 17. Qd4 {[%clk 0:02:00]}  Rg5 {[%clk 0:01:28]} 18. g3 {[%clk 0:01:42]}  Qh3 {[%clk 0:01:23]} 19. e4 {[%clk 0:01:36]}  Bc5 {[%clk 0:00:38]} 20. Qd2 {[%clk 0:01:15]}  Rxg3+ {[%clk 0:00:31]} 21. hxg3 {[%clk 0:01:13]}  Qxg3+ {[%clk 0:00:31]} 22. Kh1 {[%clk 0:01:13]}  Qh3+ {[%clk 0:00:31]} 23. Kg1 {[%clk 0:01:12]}  Bd6 {[%clk 0:00:22]} 24. f4 {[%clk 0:00:39]}  Bc5+ {[%clk 0:00:22]} 25. Rf2 {[%clk 0:00:39]}  Qg3+ {[%clk 0:00:22]} 26. Kh1 {[%clk 0:00:39]}  Bxf2 {[%clk 0:00:23]} 27. Qd3 {[%clk 0:00:34]}  Qxf4 {[%clk 0:00:20]} 28. Rf1 {[%clk 0:00:30]}  Ra6 {[%clk 0:00:18]} 29. Qxa6 {[%clk 0:00:22]}  Qh4+ {[%clk 0:00:12]} 30. Kg2 {[%clk 0:00:21]}  Qg3+ {[%clk 0:00:12]} 31. Kh1 {[%clk 0:00:21]}  Bxe4+ {[%clk 0:00:13]} 0-1


[Site "https://www.chess.com"]

[Event "Titled Tuesday Blitz July 25 Early 2023"]
[White "TomLiu777"]
[Black "De Silva, L M S T"]
[BlackFideId "9953698"]
[WhiteElo "2362"]
[BlackElo "2723"]
[Result "0-1"]
[Round "2"]
[TimeControl "180+2"]
[Date "2023.07.25"]
[WhiteClock "0:00:01"]
[BlackClock "0:00:05"]
[Board "94"]

1. c4 {[%clk 0:03:00]}  e5 {[%clk 0:02:57]} 2. Nc3 {[%clk 0:02:58]}  Nf6 {[%clk 0:02:57]} 3. Nf3 {[%clk 0:02:58]}  Nc6 {[%clk 0:02:57]} 4. e4 {[%clk 0:02:58]}  Bc5 {[%clk 0:02:47]} 5. Nxe5 {[%clk 0:02:58]}  Nxe5 {[%clk 0:02:48]} 6. d4 {[%clk 0:02:58]}  Bb4 {[%clk 0:02:48]} 7. dxe5 {[%clk 0:02:59]}  Nxe4 {[%clk 0:02:47]} 8. Qf3 {[%clk 0:02:59]}  Nxc3 {[%clk 0:02:48]} 9. bxc3 {[%clk 0:03:00]}  Ba5 {[%clk 0:02:48]} 10. Bf4 {[%clk 0:03:00]}  O-O {[%clk 0:02:45]} 11. Rd1 {[%clk 0:03:00]}  Qe7 {[%clk 0:02:41]} 12. Be2 {[%clk 0:02:59]}  Qa3 {[%clk 0:02:25]} 13. O-O {[%clk 0:02:57]}  Qxc3 {[%clk 0:02:23]} 14. Bd3 {[%clk 0:02:54]}  d6 {[%clk 0:01:49]} 15. exd6 {[%clk 0:02:31]}  Be6 {[%clk 0:01:42]} 16. Bd2 {[%clk 0:02:02]}  Qe5 {[%clk 0:01:40]} 17. Rfe1 {[%clk 0:01:58]}  Qc5 {[%clk 0:01:37]} 18. Be3 {[%clk 0:01:44]}  Qc6 {[%clk 0:01:08]} 19. Qh5 {[%clk 0:01:39]}  f5 {[%clk 0:01:08]} 20. Rf1 {[%clk 0:01:22]}  cxd6 {[%clk 0:00:46]} 21. Bd4 {[%clk 0:01:17]}  Bb6 {[%clk 0:00:40]} 22. Ba1 {[%clk 0:01:13]}  Qe8 {[%clk 0:00:39]} 23. Qf3 {[%clk 0:01:10]}  Qf7 {[%clk 0:00:38]} 24. Rfe1 {[%clk 0:01:06]}  Rae8 {[%clk 0:00:36]} 25. Qf4 {[%clk 0:00:59]}  Bc7 {[%clk 0:00:28]} 26. Qf3 {[%clk 0:00:53]}  Ba5 {[%clk 0:00:19]} 27. Re2 {[%clk 0:00:33]}  Bxc4 {[%clk 0:00:16]} 28. Rxe8 {[%clk 0:00:31]}  Rxe8 {[%clk 0:00:15]} 29. Bxf5 {[%clk 0:00:28]}  g6 {[%clk 0:00:09]} 30. Be4 {[%clk 0:00:22]}  Qxf3 {[%clk 0:00:07]} 31. gxf3 {[%clk 0:00:23]}  Bc7 {[%clk 0:00:05]} 32. Bxb7 {[%clk 0:00:20]}  Bxa2 {[%clk 0:00:05]} 33. Rc1 {[%clk 0:00:11]}  Bb6 {[%clk 0:00:05]} 34. Kg2 {[%clk 0:00:05]}  Re2 {[%clk 0:00:05]} 35. Rf1 {[%clk 0:00:04]}  Bc4 {[%clk 0:00:04]} 36. Kg3 {[%clk 0:00:04]}  Ra2 {[%clk 0:00:04]} 37. Rd1 {[%clk 0:00:04]}  Bxf2+ {[%clk 0:00:05]} 38. Kg4 {[%clk 0:00:05]}  Bc5 {[%clk 0:00:05]} 39. Kg5 {[%clk 0:00:05]}  Kf7 {[%clk 0:00:04]} 40. Bd5+ {[%clk 0:00:02]}  Bxd5 {[%clk 0:00:04]} 41. Rxd5 {[%clk 0:00:02]}  Rxa1 {[%clk 0:00:05]} 42. Rd3 {[%clk 0:00:01]}  Rh1 {[%clk 0:00:05]} 43. h4 {[%clk 0:00:01]}  Rg1+ {[%clk 0:00:05]} 0-1


[Site "https://www.chess.com"]

[Event "Titled Tuesday Blitz July 25 Early 2023"]
[White "Suyarov, Mukhammadzokhid"]
[Black "Dwilewicz, Katarzyna"]
[WhiteFideId "14210495"]
[BlackFideId "1148486"]
[WhiteElo "2720"]
[BlackElo "2346"]
[Result "1-0"]
[Round "2"]
[TimeControl "180+2"]
[Date "2023.07.25"]
[WhiteClock "0:02:16"]
[BlackClock "0:00:32"]
[Board "95"]

1. d4 {[%clk 0:03:00]}  d5 {[%clk 0:02:58]} 2. Nc3 {[%clk 0:02:59]}  g6 {[%clk 0:02:56]} 3. e4 {[%clk 0:02:58]}  dxe4 {[%clk 0:02:54]} 4. Nxe4 {[%clk 0:02:59]}  Bg7 {[%clk 0:02:54]} 5. Nf3 {[%clk 0:02:59]}  Nc6 {[%clk 0:02:44]} 6. Bc4 {[%clk 0:02:56]}  Nxd4 {[%clk 0:02:31]} 7. O-O {[%clk 0:02:55]}  Nxf3+ {[%clk 0:02:22]} 8. Qxf3 {[%clk 0:02:54]}  Nf6 {[%clk 0:02:18]} 9. Nxf6+ {[%clk 0:02:54]}  Bxf6 {[%clk 0:02:15]} 10. Bh6 {[%clk 0:02:54]}  Be6 {[%clk 0:02:04]} 11. Qxb7 {[%clk 0:02:47]}  Bd7 {[%clk 0:01:26]} 12. Rad1 {[%clk 0:02:31]}  Qc8 {[%clk 0:01:24]} 13. Qf3 {[%clk 0:02:28]}  Rg8 {[%clk 0:01:15]} 14. Rfe1 {[%clk 0:02:25]}  Rb8 {[%clk 0:00:36]} 15. Qxf6 {[%clk 0:02:24]}  Be6 {[%clk 0:00:35]} 16. Bxe6 {[%clk 0:02:16]}  exf6 {[%clk 0:00:32]} 1-0


[Site "https://www.chess.com"]

[Event "Titled Tuesday Blitz July 25 Early 2023"]
[White "NikaVolkov"]
[Black "Attacker_2006"]
[WhiteElo "2716"]
[BlackElo "2336"]
[Result "1/2-1/2"]
[Round "2"]
[TimeControl "180+2"]
[Date "2023.07.25"]
[WhiteClock "0:00:14"]
[BlackClock "0:00:01"]
[Board "98"]

1. d4 {[%clk 0:03:00]}  Nf6 {[%clk 0:02:57]} 2. Nf3 {[%clk 0:03:00]}  d5 {[%clk 0:02:56]} 3. c4 {[%clk 0:03:01]}  e6 {[%clk 0:02:55]} 4. Nc3 {[%clk 0:03:01]}  Bb4 {[%clk 0:02:54]} 5. e3 {[%clk 0:03:00]}  O-O {[%clk 0:02:47]} 6. Bd3 {[%clk 0:02:59]}  dxc4 {[%clk 0:02:45]} 7. Bxc4 {[%clk 0:03:00]}  a6 {[%clk 0:02:46]} 8. O-O {[%clk 0:02:59]}  b5 {[%clk 0:02:46]} 9. Bd3 {[%clk 0:02:59]}  Bb7 {[%clk 0:02:45]} 10. Qe2 {[%clk 0:03:00]}  c5 {[%clk 0:02:42]} 11. Rd1 {[%clk 0:03:00]}  cxd4 {[%clk 0:02:39]} 12. Nxd4 {[%clk 0:03:00]}  Nbd7 {[%clk 0:02:36]} 13. a3 {[%clk 0:03:00]}  Be7 {[%clk 0:02:28]} 14. b3 {[%clk 0:02:59]}  Rc8 {[%clk 0:02:27]} 15. Bb2 {[%clk 0:03:00]}  Rc7 {[%clk 0:02:21]} 16. Rac1 {[%clk 0:02:59]}  Qa8 {[%clk 0:02:21]} 17. f3 {[%clk 0:02:59]}  Rfc8 {[%clk 0:02:21]} 18. a4 {[%clk 0:02:58]}  b4 {[%clk 0:02:20]} 19. Nb1 {[%clk 0:02:58]}  Nc5 {[%clk 0:02:18]} 20. Bc4 {[%clk 0:02:58]}  Bd5 {[%clk 0:02:17]} 21. Nd2 {[%clk 0:02:51]}  h6 {[%clk 0:02:10]} 22. Bxd5 {[%clk 0:02:49]}  Qxd5 {[%clk 0:02:09]} 23. Nc4 {[%clk 0:02:49]}  Qb7 {[%clk 0:02:01]} 24. h3 {[%clk 0:02:38]}  Nd5 {[%clk 0:02:00]} 25. e4 {[%clk 0:02:30]}  Nc3 {[%clk 0:02:00]} 26. Bxc3 {[%clk 0:02:31]}  bxc3 {[%clk 0:02:01]} 27. Rxc3 {[%clk 0:02:31]}  Qb4 {[%clk 0:01:55]} 28. Rdc1 {[%clk 0:02:26]}  e5 {[%clk 0:01:23]} 29. Nf5 {[%clk 0:02:05]}  Bg5 {[%clk 0:01:23]} 30. R1c2 {[%clk 0:01:50]}  Nxb3 {[%clk 0:01:21]} 31. h4 {[%clk 0:01:33]}  Nd4 {[%clk 0:01:12]} 32. Nxd4 {[%clk 0:01:26]}  exd4 {[%clk 0:01:13]} 33. Rd3 {[%clk 0:01:15]}  Bxh4 {[%clk 0:00:55]} 34. Rxd4 {[%clk 0:01:01]}  Be7 {[%clk 0:00:41]} 35. Kh1 {[%clk 0:00:41]}  Rc5 {[%clk 0:00:30]} 36. g4 {[%clk 0:00:36]}  Bf6 {[%clk 0:00:25]} 37. e5 {[%clk 0:00:33]}  Bxe5 {[%clk 0:00:24]} 38. Re4 {[%clk 0:00:33]}  Bf6 {[%clk 0:00:18]} 39. Kg2 {[%clk 0:00:34]}  Qb8 {[%clk 0:00:16]} 40. Ne3 {[%clk 0:00:30]}  Rxc2 {[%clk 0:00:16]} 41. Nxc2 {[%clk 0:00:31]}  h5 {[%clk 0:00:17]} 42. gxh5 {[%clk 0:00:29]}  Rf8 {[%clk 0:00:16]} 43. Ne3 {[%clk 0:00:28]}  Bg5 {[%clk 0:00:14]} 44. Nf5 {[%clk 0:00:27]}  Qb3 {[%clk 0:00:10]} 45. Rg4 {[%clk 0:00:23]}  Bf6 {[%clk 0:00:09]} 46. Kh3 {[%clk 0:00:16]}  Qe6 {[%clk 0:00:08]} 47. Qxe6 {[%clk 0:00:13]}  fxe6 {[%clk 0:00:09]} 48. Nd6 {[%clk 0:00:14]}  Be5 {[%clk 0:00:05]} 49. Ne4 {[%clk 0:00:14]}  Rxf3+ {[%clk 0:00:06]} 50. Kg2 {[%clk 0:00:15]}  Rf5 {[%clk 0:00:06]} 51. h6 {[%clk 0:00:15]}  Kh7 {[%clk 0:00:06]} 52. hxg7 {[%clk 0:00:15]}  Bxg7 {[%clk 0:00:07]} 53. Ng3 {[%clk 0:00:16]}  Rf6 {[%clk 0:00:07]} 54. Re4 {[%clk 0:00:15]}  Rg6 {[%clk 0:00:07]} 55. Kf3 {[%clk 0:00:15]}  Bh6 {[%clk 0:00:07]} 56. Rc4 {[%clk 0:00:15]}  Rf6+ {[%clk 0:00:07]} 57. Ke2 {[%clk 0:00:15]}  Rf4 {[%clk 0:00:07]} 58. Ne4 {[%clk 0:00:15]}  Kg6 {[%clk 0:00:07]} 59. Kd3 {[%clk 0:00:15]}  Rf3+ {[%clk 0:00:06]} 60. Kd4 {[%clk 0:00:15]}  Bg7+ {[%clk 0:00:05]} 61. Kc5 {[%clk 0:00:15]}  Rf5+ {[%clk 0:00:06]} 62. Kd6 {[%clk 0:00:14]}  e5 {[%clk 0:00:03]} 63. Ke6 {[%clk 0:00:10]}  Rf4 {[%clk 0:00:03]} 64. Kd5 {[%clk 0:00:10]}  Kf5 {[%clk 0:00:03]} 65. Nd6+ {[%clk 0:00:10]}  Kg4 {[%clk 0:00:04]} 66. Rc7 {[%clk 0:00:10]}  Bh6 {[%clk 0:00:04]} 67. Ne4 {[%clk 0:00:10]}  Kf3 {[%clk 0:00:04]} 68. Rc3+ {[%clk 0:00:10]}  Kg4 {[%clk 0:00:04]} 69. Rc6 {[%clk 0:00:11]}  Kf3 {[%clk 0:00:03]} 70. Rc3+ {[%clk 0:00:03]}  Kg4 {[%clk 0:00:03]} 71. Rg3+ {[%clk 0:00:03]}  Kh4 {[%clk 0:00:03]} 72. Rg6 {[%clk 0:00:03]}  Kh5 {[%clk 0:00:02]} 73. Rg1 {[%clk 0:00:02]}  Rf8 {[%clk 0:00:02]} 74. Kxe5 {[%clk 0:00:02]}  Re8+ {[%clk 0:00:03]} 75. Kf5 {[%clk 0:00:03]}  Rf8+ {[%clk 0:00:02]} 76. Nf6+ {[%clk 0:00:03]}  Kh4 {[%clk 0:00:03]} 77. Rh1+ {[%clk 0:00:04]}  Kg3 {[%clk 0:00:03]} 78. Rxh6 {[%clk 0:00:05]}  a5 {[%clk 0:00:04]} 79. Ke5 {[%clk 0:00:05]}  Kf3 {[%clk 0:00:03]} 80. Rh3+ {[%clk 0:00:05]}  Ke2 {[%clk 0:00:03]} 81. Rb3 {[%clk 0:00:05]}  Kd2 {[%clk 0:00:03]} 82. Rb5 {[%clk 0:00:06]}  Rg8 {[%clk 0:00:03]} 83. Rxa5 {[%clk 0:00:05]}  Rg5+ {[%clk 0:00:04]} 84. Kd4 {[%clk 0:00:04]}  Rxa5 {[%clk 0:00:05]} 85. Nd5 {[%clk 0:00:05]}  Rxa4+ {[%clk 0:00:05]} 86. Kc5 {[%clk 0:00:06]}  Kd3 {[%clk 0:00:05]} 87. Nb4+ {[%clk 0:00:06]}  Kc3 {[%clk 0:00:06]} 88. Nd5+ {[%clk 0:00:06]}  Kb3 {[%clk 0:00:06]} 89. Nb6 {[%clk 0:00:06]}  Ra5+ {[%clk 0:00:06]} 90. Kc6 {[%clk 0:00:06]}  Kb4 {[%clk 0:00:06]} 91. Nd5+ {[%clk 0:00:07]}  Kc4 {[%clk 0:00:07]} 92. Nb6+ {[%clk 0:00:07]}  Kd4 {[%clk 0:00:07]} 93. Kd6 {[%clk 0:00:07]}  Rc5 {[%clk 0:00:05]} 94. Nd7 {[%clk 0:00:06]}  Rh5 {[%clk 0:00:03]} 95. Ke6 {[%clk 0:00:05]}  Rh6+ {[%clk 0:00:02]} 96. Nf6 {[%clk 0:00:06]}  Kc5 {[%clk 0:00:02]} 97. Kf5 {[%clk 0:00:06]}  Kd6 {[%clk 0:00:02]} 98. Kg5 {[%clk 0:00:07]}  Rh8 {[%clk 0:00:01]} 99. Kf5 {[%clk 0:00:08]}  Ke7 {[%clk 0:00:02]} 100. Nd5+ {[%clk 0:00:08]}  Kf7 {[%clk 0:00:03]} 101. Nf4 {[%clk 0:00:08]}  Ra8 {[%clk 0:00:02]} 102. Ke5 {[%clk 0:00:08]}  Ra5+ {[%clk 0:00:03]} 103. Nd5 {[%clk 0:00:09]}  Ke8 {[%clk 0:00:03]} 104. Kd6 {[%clk 0:00:09]}  Ra6+ {[%clk 0:00:04]} 105. Kc5 {[%clk 0:00:10]}  Kd7 {[%clk 0:00:04]} 106. Nb6+ {[%clk 0:00:10]}  Kc7 {[%clk 0:00:04]} 107. Nd5+ {[%clk 0:00:11]}  Kd7 {[%clk 0:00:04]} 108. Kb5 {[%clk 0:00:11]}  Rd6 {[%clk 0:00:03]} 109. Nb6+ {[%clk 0:00:11]}  Kc7 {[%clk 0:00:03]} 110. Nc4 {[%clk 0:00:12]}  Rd5+ {[%clk 0:00:04]} 111. Kb4 {[%clk 0:00:13]}  Kc6 {[%clk 0:00:05]} 112. Na5+ {[%clk 0:00:13]}  Kb6 {[%clk 0:00:04]} 113. Nc4+ {[%clk 0:00:14]}  Kc6 {[%clk 0:00:05]} 114. Na5+ {[%clk 0:00:14]}  Kd6 {[%clk 0:00:05]} 115. Nc4+ {[%clk 0:00:14]}  Kc7 {[%clk 0:00:05]} 116. Ne3 {[%clk 0:00:14]}  Rh5 {[%clk 0:00:04]} 117. Kc4 {[%clk 0:00:14]}  Kd6 {[%clk 0:00:04]} 118. Kd4 {[%clk 0:00:13]}  Rh4+ {[%clk 0:00:04]} 119. Kd3 {[%clk 0:00:13]}  Ke5 {[%clk 0:00:03]} 120. Nc4+ {[%clk 0:00:14]}  Kd5 {[%clk 0:00:04]} 121. Ne3+ {[%clk 0:00:14]}  Kc5 {[%clk 0:00:05]} 122. Ng2 {[%clk 0:00:14]}  Rg4 {[%clk 0:00:03]} 123. Ne3 {[%clk 0:00:14]}  Rd4+ {[%clk 0:00:01]} 124. Kc3 {[%clk 0:00:14]} 1/2-1/2


[Site "https://www.chess.com"]

[Event "Titled Tuesday Blitz July 25 Early 2023"]
[White "Matko, Ognjen"]
[Black "Liyanage, Ranindu Dilshan"]
[WhiteFideId "14509717"]
[BlackFideId "9915834"]
[WhiteElo "2331"]
[BlackElo "2716"]
[Result "0-1"]
[Round "2"]
[TimeControl "180+2"]
[Date "2023.07.25"]
[WhiteClock "0:00:20"]
[BlackClock "0:00:59"]
[Board "99"]

1. e4 {[%clk 0:03:00]}  c5 {[%clk 0:02:59]} 2. Nf3 {[%clk 0:02:57]}  Nc6 {[%clk 0:03:00]} 3. d4 {[%clk 0:02:56]}  cxd4 {[%clk 0:03:00]} 4. Nxd4 {[%clk 0:02:57]}  Nf6 {[%clk 0:03:00]} 5. Nc3 {[%clk 0:02:57]}  e5 {[%clk 0:03:01]} 6. Ndb5 {[%clk 0:02:56]}  d6 {[%clk 0:03:01]} 7. Bg5 {[%clk 0:02:55]}  a6 {[%clk 0:03:01]} 8. Na3 {[%clk 0:02:55]}  b5 {[%clk 0:03:01]} 9. Nd5 {[%clk 0:02:56]}  Be7 {[%clk 0:03:01]} 10. Bxf6 {[%clk 0:02:56]}  Bxf6 {[%clk 0:03:01]} 11. c3 {[%clk 0:02:57]}  Ne7 {[%clk 0:03:00]} 12. Nc2 {[%clk 0:02:36]}  Nxd5 {[%clk 0:02:46]} 13. Qxd5 {[%clk 0:02:37]}  Be6 {[%clk 0:02:44]} 14. Qd2 {[%clk 0:02:25]}  O-O {[%clk 0:02:37]} 15. Ne3 {[%clk 0:02:23]}  Bg5 {[%clk 0:02:37]} 16. Bd3 {[%clk 0:02:18]}  Qb6 {[%clk 0:02:22]} 17. O-O {[%clk 0:02:13]}  Rad8 {[%clk 0:02:22]} 18. Qe2 {[%clk 0:02:08]}  Bxe3 {[%clk 0:02:18]} 19. fxe3 {[%clk 0:01:58]}  d5 {[%clk 0:02:17]} 20. exd5 {[%clk 0:01:47]}  Bxd5 {[%clk 0:02:18]} 21. b3 {[%clk 0:01:38]}  e4 {[%clk 0:02:06]} 22. Bb1 {[%clk 0:01:12]}  Qc5 {[%clk 0:02:03]} 23. Rc1 {[%clk 0:01:10]}  f5 {[%clk 0:02:02]} 24. Kh1 {[%clk 0:01:07]}  f4 {[%clk 0:02:01]} 25. exf4 {[%clk 0:01:07]}  Rxf4 {[%clk 0:02:01]} 26. a4 {[%clk 0:00:59]}  Rf2 {[%clk 0:01:51]} 27. Qh5 {[%clk 0:00:32]}  Qe3 {[%clk 0:01:22]} 28. Bc2 {[%clk 0:00:23]}  g6 {[%clk 0:01:02]} 29. Qh4 {[%clk 0:00:21]}  Rdf8 {[%clk 0:01:00]} 30. axb5 {[%clk 0:00:20]}  Qxc1+ {[%clk 0:00:59]} 0-1


[Site "https://www.chess.com"]